{"text_format":"1","workbook":"xlsx","n_sheets":6,"sheets":["表紙","自己採点シート","学習自己点検シート ","単位修得状況確認表（共通教育科目，外国人留学生）","単位修得状況確認表（専門教育科目）","累積グラフ"],"not_rendered":{"charts":11,"images":2,"macros":1,"external_links":0,"defined_names":5,"comments":0,"pivot_tables":0},"unopened":[],"bounds":{"document_bytes":16777216,"sheet_cells":100000,"rows_first":2000,"rows_last":500,"rows_between":2000,"halvings":0,"cell_chars":16384,"cell_head_chars":4096},"cells_cut":0,"cells_raw":0,"read":"whole","date_system":"1900"}

{"sheet":"表紙","index":0,"n_rows":34,"n_cols":2,"rows_kept":34,"cut":false,"hidden":false,"merged":[]}
[]
[]
[]
[]
[]
[]
[]
[]
[]
[]
[]
[null,"鹿児島大学工学部ポートフォリオ"]
[]
[]
[]
[]
[]
[]
[]
[]
[]
[]
[]
[]
[]
[]
[]
[]
[]
[]
[]
[null,"学科："]
[null,"氏名："]
[null,"学籍番号："]

{"sheet":"自己採点シート","index":1,"n_rows":22,"n_cols":21,"rows_kept":22,"cut":false,"hidden":false,"merged":[[12,2,12,5],[3,10,3,11],[3,19,3,20],[9,2,9,5],[10,2,10,5],[11,2,11,5],[19,2,19,5],[20,2,20,5],[21,2,21,5],[13,2,13,5],[14,2,14,5],[15,2,15,5],[16,2,16,5],[17,2,17,5],[18,2,18,5]]}
[]
[null,"自己採点シート"]
[]
[null,null,null,null,null,null,null,null,null,"学籍番号",null,null,null,null,null,null,null,null,"氏名"]
[]
[null,"■学生のみなさんへ"]
[null,null,"今期受講した科目に関して、以下の項目に対して自己採点をしてください。(１０点満点)"]
[]
[]
[null,null,"項目",null,null,null,"2017年度\n前期","2017年度\n後期","2018年度\n前期","2018年度\n後期","2019年度\n前期","2019年度\n後期","2018年度\n前期","2018年度\n後期","2019年度\n前期","2019年度\n後期","2020年度\n前期","2020年度\n後期","2020年度\n前期","2020年度\n後期","卒業時"]
[null,1,"工学に関しての基礎知識\n（物理・化学・数学・情報など）"]
[null,2,"各工学分野での基礎知識\n（専門科目など）"]
[null,3,"人前での発表能力"]
[null,4,"人と話し合ったり議論する能力"]
[null,5,"チームの一員として取り組める（チームワーク）能力"]
[null,6,"英語、その他外国語による表現力"]
[null,7,"読書、講習会への参加、英会話や情報処理学習など大学以外での学習による自己啓発・生涯学習能力"]
[null,8,"社会性や国際感覚が身についているか。"]
[null,9,"倫理観、責任感が身についているか。"]
[null,10]
[null,11]
[null,12]

{"sheet":"学習自己点検シート ","index":2,"n_rows":68,"n_cols":13,"rows_kept":68,"cut":false,"hidden":false,"merged":[[4,8,4,9],[4,11,4,12],[7,2,7,12]]}
[]
[null,null,null,null,null,null,null,null,null,null,null,"年度","期"]
[null,"学習自己点検シート"]
[]
[null,null,null,null,null,null,null,"学籍番号",null,null,"氏名"]
[]
[null,"■学生のみなさんへ"]
[null,null,"学生生活全般に関して自己点検をお願いしています。今期受講した科目に関して、以下の質問項目に答えてください。面談時、指導教員（アドバイザー）の先生方から回答に対する具体的なアドバイスを受けてください。"]
[]
[]
[null,"■回答項目"]
[]
[null,1,"今期の目標は達成できましたか。"]
[]
[]
[]
[]
[null,2,"講義への取り組みは積極的でしたか。また、積極的に取り組むことができなかった講義は具体的に何ですか。"]
[]
[]
[]
[]
[null,3,"講義毎に勉強方法がつかめていますか。"]
[]
[]
[]
[]
[null,4,"それぞれの講義の理解度は自分の目標に達していますか。理解度が足りないと感じている講義は何ですか。"]
[]
[]
[]
[]
[null,5,"平日（試験勉強以外）１日当たりの勉強時間（平均）はどのくらいですか。勉強時間が足りないと感じている講義は何ですか。"]
[]
[]
[]
[]
[null,6,"アルバイトと勉強は両立できましたか。"]
[]
[]
[]
[]
[null,7,"サークル活動と勉強は両立できましたか。"]
[]
[]
[]
[]
[null,8,"卒業後の進路についてどのように考えていますか。"]
[]
[]
[]
[]
[null,9,"その他、アドバイスが必要なことはありますか。"]
[]
[]
[]
[]
[null,10]
[]
[]
[]
[]
[null,11]
[]
[]
[]
[]
[null,12]

{"sheet":"単位修得状況確認表（共通教育科目，外国人留学生）","index":3,"n_rows":37,"n_cols":49,"rows_kept":37,"cut":false,"hidden":false,"merged":[[1,0,1,41],[2,0,5,6],[2,7,2,38],[2,39,5,39],[2,40,5,40],[2,41,5,41],[4,7,4,8],[4,9,4,10],[4,11,4,12],[4,13,4,14],[4,37,4,38],[4,15,4,16],[4,17,4,18],[4,19,4,20],[4,21,4,22],[4,23,4,24],[3,7,3,10],[3,11,3,14],[3,15,3,18],[3,19,3,22],[3,23,3,26],[6,0,16,0],[6,1,11,3],[9,4,10,4],[12,1,13,3],[4,25,4,26],[14,1,15,3],[3,27,3,30],[3,31,3,34],[3,35,3,38],[4,35,4,36],[4,27,4,28],[4,29,4,30],[4,31,4,32],[4,33,4,34],[17,0,23,0],[17,1,20,3],[18,4,20,4],[21,1,22,3],[21,40,22,40],[27,7,27,8],[24,0,24,6],[25,1,25,10],[26,39,26,40],[27,37,27,38],[27,15,27,16],[27,17,27,18],[27,19,27,20],[27,21,27,22],[27,23,27,24],[27,25,27,26],[27,27,27,28],[27,29,27,30],[27,31,27,32],[27,33,27,34],[27,35,27,36],[27,0,27,6],[27,9,27,10],[27,11,27,12],[27,13,27,14],[28,27,28,28],[28,0,28,6],[28,7,28,8],[28,9,28,10],[28,11,28,12],[28,13,28,14],[28,15,28,16],[28,17,28,18],[28,19,28,20],[28,21,28,22],[28,23,28,24],[28,25,28,26],[28,29,28,30],[28,31,28,32],[28,33,28,34],[28,35,28,36],[28,37,28,38],[29,23,29,24],[29,35,29,36],[29,37,29,38],[29,25,29,26],[29,27,29,28],[29,29,29,30],[29,31,29,32],[29,33,29,34],[29,15,29,16],[29,17,29,18],[29,19,29,20],[29,21,29,22],[29,0,29,6],[29,7,29,8],[29,9,29,10],[29,11,29,12],[29,13,29,14]]}
[null,null,null,null,null,null,null,null,null,null,null,null,null,null,null,null,null,null,null,null,null,null,null,null,null,null,null,null,null,null,null,null,null,null,null,null,null,null,null,null,null,null,null,null,null,null,null,null,"A"]
["単位修得状況確認表（共通教育科目：外国人留学生）",null,null,null,null,null,null,null,null,null,null,null,null,null,null,null,null,null,null,null,null,null,null,null,null,null,null,null,null,null,null,null,null,null,null,null,null,null,null,null,null,null,null,null,null,null,null,null,"B"]
["　",null,null,null,null,null,null,"取得単位数およびGP",null,null,null,null,null,null,null,null,null,null,null,null,null,null,null,null,null,null,null,null,null,null,null,null,null,null,null,null,null,null,null,"取得単位数","要修得\n単位数","累積GP",null,null,"当該期修得単位の入力要領（共通教育科目）",null,null,null,"C"]
[null,null,null,null,null,null,null,"　年次",null,null,null,"　年次",null,null,null,"　年次",null,null,null,"　年次",null,null,null,"　年次",null,null,null,"　年次",null,null,null,"　年次",null,null,null,"　年次",null,null,null,null,null,null,null,null,"１．黄色枠に各科目(英語及び日本語の場合は修得",null,null,null,"D"]
[null,null,null,null,null,null,null,"１期",null,"２期",null,"３期",null,"４期",null,"５期",null,"６期",null,"７期",null,"８期",null,"９期",null,"10期",null,"11期",null,"12期",null,"13期",null,"14期",null,"15期",null,"16期",null,null,null,null,null,null,"　　した合計単位数)の修得単位数を記入する。",null,null,null,"F"]
[null,null,null,null,null,null,null,"単位","合計GP","単位","合計GP","単位","合計GP","単位","合計GP","単位","合計GP","単位","合計GP","単位","合計GP","単位","合計GP","単位","合計GP","単位","合計GP","単位","合計GP","単位","合計GP","単位","合計GP","単位","合計GP","単位","合計GP","単位","合計GP",null,null,null,null,null,"２．オレンジ枠に修得した必修科目・選択必修",null,null,null,"P"]
["必修科目","初年次教育科目",null,null,"初年次セミナーⅠ",null,null,null,null,null,null,null,null,null,null,null,null,null,null,null,null,null,null,null,null,null,null,null,null,null,null,null,null,null,null,null,null,null,null,{"$f":"SUM(H7,J7,L7,N7,P7,R7,T7,V7,X7,Z7,AB7,AD7,AF7,AH7,AJ7,AL7)","v":0},2,null,null,null,"　　科目・全科目それぞれの合計単位数を記入"]
[null,null,null,null,"初年次セミナーⅡ",null,null,null,null,null,null,null,null,null,null,null,null,null,null,null,null,null,null,null,null,null,null,null,null,null,null,null,null,null,null,null,null,null,null,{"$f":"SUM(H8,J8,L8,N8,P8,R8,T8,V8,X8,Z8,AB8,AD8,AF8,AH8,AJ8,AL8)","v":0},"－",null,null,null,"　　する。"]
[null,null,null,null,"大学と地域",null,null,null,null,null,null,null,null,null,null,null,null,null,null,null,null,null,null,null,null,null,null,null,null,null,null,null,null,null,null,null,null,null,null,0,2,null,null,null,"３．灰色枠に受講科目の合計GP（単位数×GP）"]
[null,null,null,null,"体育・健康","理論",null,null,null,null,null,null,null,null,null,null,null,null,null,null,null,null,null,null,null,null,null,null,null,null,null,null,null,null,null,null,null,null,null,0,1,null,null,null,"　　を計算し、その値を入力する。"]
[null,null,null,null,null,"実習",null,null,null,null,null,null,null,null,null,null,null,null,null,null,null,null,null,null,null,null,null,null,null,null,null,null,null,null,null,null,null,null,null,0,1,null,null,null,"　（評価とGPの関係：A=4,B=3,C=2,D=1,F=0,Pは"]
[null,null,null,null,"情報活用",null,null,null,null,null,null,null,null,null,null,null,null,null,null,null,null,null,null,null,null,null,null,null,null,null,null,null,null,null,null,null,null,null,null,0,2,null,null,null,"　　GPの該当外なので合計GP欄は空欄とする。）"]
[null,"ｸﾞﾛｰﾊﾞﾙ教育科目",null,null,"英語",null,null,null,null,null,null,null,null,null,null,null,null,null,null,null,null,null,null,null,null,null,null,null,null,null,null,null,null,null,null,null,null,null,null,0,6,null,null,null,"４．取得単位数を要修得単位数と比較して、"]
[null,null,null,null,"異文化理解",null,null,null,null,null,null,null,null,null,null,null,null,null,null,null,null,null,null,null,null,null,null,null,null,null,null,null,null,null,null,null,null,null,null,0,2,null,null,null,"　　単位取得状況を把握する。"]
[null,"日本語・日本事情科目",null,null,"日本語",null,null,null,null,null,null,null,null,null,null,null,null,null,null,null,null,null,null,null,null,null,null,null,null,null,null,null,null,null,null,null,null,null,null,0,4]
[null,null,null,null,"日本事情",null,null,null,null,null,null,null,null,null,null,null,null,null,null,null,null,null,null,null,null,null,null,null,null,null,null,null,null,null,null,null,null,null,null,0,"(4)",null,null,null,"※期をまたがって開講される科目は、成績の出"]
[null,"必修科目　計",null,null,null,null,null,null,{"$f":"SUM(I7:I16)","v":0},null,{"$f":"SUM(K7:K16)","v":0},null,{"$f":"SUM(M7:M16)","v":0},null,{"$f":"SUM(O7:O16)","v":0},null,{"$f":"SUM(Q7:Q16)","v":0},null,{"$f":"SUM(S7:S16)","v":0},null,{"$f":"SUM(U7:U16)","v":0},null,{"$f":"SUM(W7:W16)","v":0},null,{"$f":"SUM(Y7:Y16)","v":0},null,{"$f":"SUM(AA7:AA16)","v":0},null,{"$f":"SUM(AC7:AC16)","v":0},null,{"$f":"SUM(AE7:AE16)","v":0},null,{"$f":"SUM(AG7:AG16)","v":0},null,{"$f":"SUM(AI7:AI16)","v":0},null,{"$f":"SUM(AK7:AK16)","v":0},null,{"$f":"SUM(AM7:AM16)","v":0},0,20,{"$f":"SUM(I17,K17,M17,O17,Q17,S17,U17,W17,Y17,AA17,AC17,AE17,AG17,AI17,AK17,AM17)","v":0},null,null,"　された期に記入する。例えば通年の場合、後"]
["選択必修科目","教養教育科目",null,null,"人文・社会科学分野","選択科目",null,null,null,null,null,null,null,null,null,null,null,null,null,null,null,null,null,null,null,null,null,null,null,null,null,null,null,null,null,null,null,null,null,0,4,null,null,null,"　期に記入する。"]
[null,null,null,null,"自然科学分野","実験科目",null,null,null,null,null,null,null,null,null,null,null,null,null,null,null,null,null,null,null,null,null,null,null,null,null,null,null,null,null,null,null,null,null,0,1,null,null,null,"※本表最下部の表の入力方法について"]
[null,null,null,null,null,"選択科目",null,null,null,null,null,null,null,null,null,null,null,null,null,null,null,null,null,null,null,null,null,null,null,null,null,null,null,null,null,null,null,null,null,0,2,null,null,null,"　・P評価の単位数は、当該期①の欄に、"]
[null,null,null,null,null,"基礎教育入門科目",null,null,null,null,null,null,null,null,null,null,null,null,null,null,null,null,null,null,null,null,null,null,null,null,null,null,null,null,null,null,null,null,null,0,2,null,null,null,"　・F評価の単位数は、当該期②の欄に、"]
[null,"教養活用科目",null,null,"統合Ⅰ（課題発見）",null,null,null,null,null,null,null,null,null,null,null,null,null,null,null,null,null,null,null,null,null,null,null,null,null,null,null,null,null,null,null,null,null,null,0,4,null,null,null,"　・評価F科目の再履修での修得単位数は当該"]
[null,null,null,null,"統合Ⅱ（課題解決）",null,null,null,null,null,null,null,null,null,null,null,null,null,null,null,null,null,null,null,null,null,null,null,null,null,null,null,null,null,null,null,null,null,null,0,null,null,null,null,"　　期③の欄に入力する。なお、②には再履修"]
[null,"選択必修科目　計",null,null,null,null,null,null,{"$f":"SUM(I18:I23)","v":0},null,{"$f":"SUM(K18:K23)","v":0},null,{"$f":"SUM(M18:M23)","v":0},null,{"$f":"SUM(O18:O23)","v":0},null,{"$f":"SUM(Q18:Q23)","v":0},null,{"$f":"SUM(S18:S23)","v":0},null,{"$f":"SUM(U18:U23)","v":0},null,{"$f":"SUM(W18:W23)","v":0},null,{"$f":"SUM(Y18:Y23)","v":0},null,{"$f":"SUM(AA18:AA23)","v":0},null,{"$f":"SUM(AC18:AC23)","v":0},null,{"$f":"SUM(AE18:AE23)","v":0},null,{"$f":"SUM(AG18:AG23)","v":0},null,{"$f":"SUM(AI18:AI23)","v":0},null,{"$f":"SUM(AK18:AK23)","v":0},null,{"$f":"SUM(AM18:AM23)","v":0},0,13,{"$f":"SUM(I24,K24,M24,O24,Q24,S24,U24,W24,Y24,AA24,AC24,AE24,AG24,AI24,AK24,AM24)","v":0},null,null,"　　の科目は含まない。"]
["全科目合計",null,null,null,null,null,null,{"$f":"H17+H24","v":0},{"$f":"I17+I24","v":0},{"$f":"J17+J24","v":0},0,0,0,0,0,0,0,0,0,0,0,0,0,0,0,0,0,0,0,0,0,0,0,0,0,0,0,0,0,0,33,{"$f":"SUM(I25,K25,M25,O25,Q25,S25,U25,W25,Y25,AA25,AC25,AE25,AG25,AI25,AK25,AM25)","v":0},null,null,"※評価Fの科目を再履修して単位を修得した場合"]
["※","「期を増やす」欄により学年を４年間増やすことが可。",null,null,null,null,null,null,null,null,null,null,null,null,null,null,null,null,null,null,null,null,null,null,null,null,null,null,null,null,null,null,null,null,null,null,null,null,null,null,null,null,null,null,"　の入力方法について"]
[null,null,null,null,null,null,null,null,null,null,null,null,null,null,null,null,null,null,null,null,null,null,null,null,null,null,null,null,null,null,null,null,null,null,null,null,null,null,null,null,null,null,null,null,"　上記1～3の手順で入力する。"]
["①【共通教育科目】評価Pの単位数",null,null,null,null,null,null,null,null,null,null,null,null,null,null,null,null,null,null,null,null,null,null,null,null,null,null,null,null,null,null,null,null,null,null,null,null,null,null,{"$f":"SUM(H28:AM28)","v":0},null,null,null,null,"※評価D以上の科目を再履修して単位を修得した"]
["②【共通教育科目】不合格（評価F）の単位数",null,null,null,null,null,null,null,null,null,null,null,null,null,null,null,null,null,null,null,null,null,null,null,null,null,null,null,null,null,null,null,null,null,null,null,null,null,null,{"$f":"SUM(H29:AM29)","v":0},null,null,null,null,"　場合の入力方法について"]
["③【共通教育科目】評価F科目の再履修での修得単位数",null,null,null,null,null,null,null,null,null,null,null,null,null,null,null,null,null,null,null,null,null,null,null,null,null,null,null,null,null,null,null,null,null,null,null,null,null,null,{"$f":"SUM(H30:AM30)","v":0},null,null,null,null,"　上記1～3の手順で入力した後、以前の評価（"]
[null,null,null,null,null,null,null,null,null,null,null,null,null,null,null,null,null,null,null,null,null,null,null,null,null,null,null,null,null,null,null,null,null,null,null,null,null,null,null,null,null,null,null,null,"  黄色枠）と合計GP（灰色枠）を削除し、オレ"]
[null,null,null,null,null,null,null,null,null,null,null,null,null,null,null,null,null,null,null,null,null,null,null,null,null,null,null,null,null,null,null,null,null,null,null,null,null,null,null,null,null,null,null,null,"　ンジ枠の合計修得単位数から再履修で修得し"]
[null,null,null,null,null,null,null,null,null,null,null,null,null,null,null,null,null,null,null,null,null,null,null,null,null,null,null,null,null,null,null,null,null,null,null,null,null,null,null,null,null,null,null,null,"　た単位数を引いた値を再入力する。"]
[]
[null,null,null,null,null,null,null,null,null,null,null,null,null,null,null,null,null,null,null,null,null,null,null,null,null,null,null,null,null,null,null,null,null,null,null,null,null,null,null,null,null,null,null,null,"（補足説明）"]
[null,null,null,null,null,null,null,null,null,null,null,null,null,null,null,null,null,null,null,null,null,null,null,null,null,null,null,null,null,null,null,null,null,null,null,null,null,null,null,null,null,null,null,null,"※留年した場合は「期を増やす」欄で列を増"]
[null,null,null,null,null,null,null,null,null,null,null,null,null,null,null,null,null,null,null,null,null,null,null,null,null,null,null,null,null,null,null,null,null,null,null,null,null,null,null,null,null,null,null,null,"　やす。"]

{"sheet":"単位修得状況確認表（専門教育科目）","index":4,"n_rows":98,"n_cols":51,"rows_kept":98,"cut":false,"hidden":false,"merged":[[6,45,32,45],[6,46,32,46],[35,45,41,45],[35,46,41,46],[44,45,50,45],[44,46,50,46],[1,0,1,41],[2,39,5,39],[3,7,3,10],[3,11,3,14],[3,15,3,18],[4,9,4,10],[4,11,4,12],[4,13,4,14],[2,41,5,41],[3,19,3,22],[4,25,4,26],[2,40,5,40],[4,35,4,36],[2,7,2,38],[4,7,4,8],[3,31,3,34],[3,35,3,38],[4,27,4,28],[4,29,4,30],[4,31,4,32],[4,33,4,34],[3,27,3,30],[4,37,4,38],[3,23,3,26],[4,15,4,16],[4,17,4,18],[4,19,4,20],[4,21,4,22],[4,23,4,24],[2,0,5,2],[6,0,11,0],[6,1,11,2],[12,0,12,6],[14,0,32,0],[14,1,32,2],[35,2,41,2],[44,2,50,2],[96,17,96,18],[64,2,73,2],[76,2,88,2],[93,1,93,10],[95,13,95,14],[95,15,95,16],[95,17,95,18],[33,0,33,6],[35,0,41,0],[35,1,41,1],[89,0,89,6],[62,0,62,6],[42,0,42,6],[44,0,50,0],[44,1,50,1],[51,0,51,6],[96,19,96,20],[53,0,61,0],[95,0,95,6],[95,19,95,20],[64,0,73,0],[64,1,73,1],[96,21,96,22],[96,0,96,6],[96,7,96,8],[96,9,96,10],[96,11,96,12],[96,13,96,14],[96,15,96,16],[95,21,95,22],[91,0,91,6],[92,0,92,6],[95,7,95,8],[95,9,95,10],[95,11,95,12],[74,0,74,6],[76,0,88,0],[76,1,88,1],[53,1,61,1],[53,2,61,2],[96,23,96,24],[96,25,96,26],[96,27,96,28],[96,29,96,30],[96,31,96,32],[96,33,96,34],[96,35,96,36],[96,37,96,38],[95,23,95,24],[95,25,95,26],[95,27,95,28],[95,29,95,30],[95,31,95,32],[95,33,95,34],[66,50,67,50],[95,35,95,36],[95,37,95,38],[93,39,93,40],[76,45,88,45],[76,46,88,46],[53,46,61,46],[64,45,73,45],[64,46,73,46],[53,45,61,45],[73,44,75,44],[97,23,97,24],[97,25,97,26],[97,27,97,28],[97,29,97,30],[97,31,97,32],[97,33,97,34],[97,35,97,36],[97,37,97,38],[97,0,97,6],[97,7,97,8],[97,9,97,10],[97,11,97,12],[97,13,97,14],[97,15,97,16],[97,17,97,18],[97,19,97,20],[97,21,97,22]]}
[null,null,null,null,null,null,null,null,null,null,null,null,null,null,null,null,null,null,null,null,null,null,null,null,null,null,null,null,null,null,null,null,null,null,null,null,null,null,null,null,null,null,null,null,null,null,null,"A"]
["単位修得状況確認表（専門教育科目）",null,null,null,null,null,null,null,null,null,null,null,null,null,null,null,null,null,null,null,null,null,null,null,null,null,null,null,null,null,null,null,null,null,null,null,null,null,null,null,null,null,null,null,"受講科目の単位入力要領（専門教育科目）",null,null,"B"]
["区分",null,null,"工 ","専","授","単","履修科目の評価およびGP",null,null,null,null,null,null,null,null,null,null,null,null,null,null,null,null,null,null,null,null,null,null,null,null,null,null,null,null,null,null,null,"取得単位数","要修得\n単位数","累積GP",null,null,"STEP１",null,null,"C"]
[null,null,null,"学 "," ","業"," ","　年次",null,null,null,"　年次",null,null,null,"　年次",null,null,null,"　年次",null,null,null,"　年次",null,null,null,"　年次",null,null,null,"　年次",null,null,null,"　年次",null,null,null,null,null,null,null,null,"当該期に受講した科目の単位を区分ごとに以下の手順で",null,null,"D"]
[null,null,null,"基",null,"科",null,"１期",null,"２期",null,"３期",null,"４期",null,"５期",null,"６期",null,"７期",null,"８期",null,"９期",null,"10期",null,"11期",null,"12期",null,"13期",null,"14期",null,"15期",null,"16期",null,null,null,null,null,null,"入力し、要修得単位数と比較して単位取得状況を把握",null,null,"F"]
[null,null,null,"礎","門","目","位","評価","合計GP","評価","合計GP","評価","合計GP","評価","合計GP","評価","合計GP","評価","合計GP","評価","合計GP","評価","合計GP","評価","合計GP","評価","合計GP","評価","合計GP","評価","合計GP","評価","合計GP","評価","合計GP","評価","合計GP","評価","合計GP",null,null,null,null,null,"する。",null,null,"P"]
["基礎教育科目","必修科目",null,"○",null,"微分積分学A I",2,null,null,null,null,null,null,null,null,null,null,null,null,null,null,null,null,null,null,null,null,null,null,null,null,null,null,null,null,null,null,null,null,null,null,null,null,null,null,"必修科目","必修科目",259752611102,{"$f":"F7","v":"微分積分学A I"}]
[null,null,null,"○",null,"微分積分学A II",2,null,null,null,null,null,null,null,null,null,null,null,null,null,null,null,null,null,null,null,null,null,null,null,null,null,null,null,null,null,null,null,null,null,null,null,null,null,"１．黄色枠に受講科目の評価（A,B,C,D,F,P）を入力する。",null,null,250092900001,"微分積分学A II"]
[null,null,null,"○",null,"線形代数学I",2,null,null,null,null,null,null,null,null,null,null,null,null,null,null,null,null,null,null,null,null,null,null,null,null,null,null,null,null,null,null,null,null,null,null,null,null,null,"２．オレンジ枠に合計修得単位数を入力する。",null,null,250152511101,"線形代数学I"]
[null,null,null,"○",null,"線形代数学II",2,null,null,null,null,null,null,null,null,null,null,null,null,null,null,null,null,null,null,null,null,null,null,null,null,null,null,null,null,null,null,null,null,null,null,null,null,null,"３．灰色枠に受講科目の合計GP（単位数×GP）を計算し、",null,null,250082600001,"線形代数学II"]
[null,null,null,"○",null,"物理学基礎A I",2,null,null,null,null,null,null,null,null,null,null,null,null,null,null,null,null,null,null,null,null,null,null,null,null,null,null,null,null,null,null,null,null,null,null,null,null,null,"    その値を入力する。",null,null,250092900002,"物理学基礎A I"]
[null,null,null,"○",null,"物理学基礎A II",2,null,null,null,null,null,null,null,null,null,null,null,null,null,null,null,null,null,null,null,null,null,null,null,null,null,null,null,null,null,null,null,null,null,null,null,null,null,"　（評価とGPの関係：A=4,B=3,C=2,D=1,F=0,PはGPの該当",null,null,259742611101,"物理学基礎A II"]
["合計",null,null,null,null,null,null,null,{"$f":"SUM(I7:I12)","v":0},null,{"$f":"SUM(K7:K12)","v":0},null,{"$f":"SUM(M7:M12)","v":0},null,{"$f":"SUM(O7:O12)","v":0},null,{"$f":"SUM(Q7:Q12)","v":0},null,{"$f":"SUM(S7:S12)","v":0},null,{"$f":"SUM(U7:U12)","v":0},null,{"$f":"SUM(W7:W12)","v":0},null,{"$f":"SUM(Y7:Y12)","v":0},null,{"$f":"SUM(AA7:AA12)","v":0},null,{"$f":"SUM(AC7:AC12)","v":0},null,{"$f":"SUM(AE7:AE12)","v":0},null,{"$f":"SUM(AG7:AG12)","v":0},null,{"$f":"SUM(AI7:AI12)","v":0},null,{"$f":"SUM(AK7:AK12)","v":0},null,{"$f":"SUM(AM7:AM12)","v":0},{"$f":"SUM(H13,J13,L13,N13,P13,R13,T13,V13,X13,Z13,AB13,AD13,AF13,AH13,AJ13,AL13)","v":0},12,{"$f":"SUM(I13,K13,M13,O13,Q13,S13,U13,W13,Y13,AA13,AC13,AE13,AG13,AI13,AK13,AM13)","v":0},null,null,"　　外なので合計GP欄は空欄とする。）",null,null,250092900003,0]
[null,null,null,null,null,null,null,null,null,null,null,null,null,null,null,null,null,null,null,null,null,null,null,null,null,null,null,null,null,null,null,null,null,null,null,null,null,null,null,null,null,null,null,null,"４．修得単位数を要修得単位数と比較して単位取得状況"]
["専門科目","必修科目",null," ","○","プログラミング序論演習I",1,null,null,null,null,null,null,null,null,null,null,null,null,null,null,null,null,null,null,null,null,null,null,null,null,null,null,null,null,null,null,null,null,null,null,null,null,null,"    を把握する。",null,null,250092900004,{"$f":"F15","v":"プログラミング序論演習I"}]
[null,null,null,"○"," ","情報生体システム工学基礎",2,null,null,null,null,null,null,null,null,null,null,null,null,null,null,null,null,null,null,null,null,null,null,null,null,null,null,null,null,null,null,null,null,null,null,null,null,null,null,null,null,259742611102,"情報生体システム工学基礎"]
[null,null,null,null,"○","プログラミング序論演習II",1,null,null,null,null,null,null,null,null,null,null,null,null,null,null,null,null,null,null,null,null,null,null,null,null,null,null,null,null,null,null,null,null,null,null,null,null,null,"※期をまたがって開講される科目は、成績の出された期に",null,null,259752611108,"プログラミング序論演習II"]
[null,null,null,"○"," ","応用数学I",2,null,null,null,null,null,null,null,null,null,null,null,null,null,null,null,null,null,null,null,null,null,null,null,null,null,null,null,null,null,null,null,null,null,null,null,null,null,"  記入する。例えば通年の場合、後期に記入する。",null,null,250092900006,"応用数学I"]
[null,null,null,"○",null,"応用数学I演習",1,null,null,null,null,null,null,null,null,null,null,null,null,null,null,null,null,null,null,null,null,null,null,null,null,null,null,null,null,null,null,null,null,null,null,null,null,null,"※本表最下部の表の入力方法について",null,null,250092900007,"応用数学I演習"]
[null,null,null," ","○","情報生体ｼｽﾃﾑ工学実験I",1,null,null,null,null,null,null,null,null,null,null,null,null,null,null,null,null,null,null,null,null,null,null,null,null,null,null,null,null,null,null,null,null,null,null,null,null,null,"　・P評価の単位数は当該期①の欄に、"]
[null,null,null,"○"," ","応用数学II",2,null,null,null,null,null,null,null,null,null,null,null,null,null,null,null,null,null,null,null,null,null,null,null,null,null,null,null,null,null,null,null,null,null,null,null,null,null,"　・F評価の単位数は当該期②の欄に、"]
[null,null,null,"○",null,"応用数学II演習",1,null,null,null,null,null,null,null,null,null,null,null,null,null,null,null,null,null,null,null,null,null,null,null,null,null,null,null,null,null,null,null,null,null,null,null,null,null,"　・評価F科目の再履修での修得単位数は当該期③の欄に"]
[null,null,null,null,"○","プログラミング言語I",2,null,null,null,null,null,null,null,null,null,null,null,null,null,null,null,null,null,null,null,null,null,null,null,null,null,null,null,null,null,null,null,null,null,null,null,null,null,"　　入力する。なお、②には再履修の科目は含まない。"]
[null,null,null,null,"○","プログラミング言語I演習",1,null,null,null,null,null,null,null,null,null,null,null,null,null,null,null,null,null,null,null,null,null,null,null,null,null,null,null,null,null,null,null,null,null,null,null,null,null,"※評価Fの科目を再履修して単位を修得した場合の入力方"]
[null,null,null," ","○","情報生体ｼｽﾃﾑ工学実験II",1,null,null,null,null,null,null,null,null,null,null,null,null,null,null,null,null,null,null,null,null,null,null,null,null,null,null,null,null,null,null,null,null,null,null,null,null,null,"  法について"]
[null,null,null," ","○","情報生体ｼｽﾃﾑ工学実験III",2,null,null,null,null,null,null,null,null,null,null,null,null,null,null,null,null,null,null,null,null,null,null,null,null,null,null,null,null,null,null,null,null,null,null,null,null,null,"  上記１～３の手順で入力する。"]
[null,null,null,null,"○","システム工学英語I",2,null,null,null,null,null,null,null,null,null,null,null,null,null,null,null,null,null,null,null,null,null,null,null,null,null,null,null,null,null,null,null,null,null,null,null,null,null,"※評価D以上の科目を再履修して単位を修得した場合の入"]
[null,null,null,null,"○","エンジニアリングデザイン",2,null,null,null,null,null,null,null,null,null,null,null,null,null,null,null,null,null,null,null,null,null,null,null,null,null,null,null,null,null,null,null,null,null,null,null,null,null,"  力方法について"]
[null,null,null,null,"○","システム工学英語II",2,null,null,null,null,null,null,null,null,null,null,null,null,null,null,null,null,null,null,null,null,null,null,null,null,null,null,null,null,null,null,null,null,null,null,null,null,null,"  上記1～3の手順で入力した後、以前の評価（黄色枠）と"]
[null,null,null," ","○","情　報　倫　理　学",2,null,null,null,null,null,null,null,null,null,null,null,null,null,null,null,null,null,null,null,null,null,null,null,null,null,null,null,null,null,null,null,null,null,null,null,null,null,"  合計GP（灰色枠）を削除し、オレンジ枠の合計修得単位"]
[null,null,null,null,"○","情報セキュリティ",2,null,null,null,null,null,null,null,null,null,null,null,null,null,null,null,null,null,null,null,null,null,null,null,null,null,null,null,null,null,null,null,null,null,null,null,null,null,"  数から再履修で修得した単位数を引いた値を再入力する。"]
[null,null,null," ","○","情報生体ｼｽﾃﾑ工学実験IV",2,null,null,null,null,null,null,null,null,null,null,null,null,null,null,null,null,null,null,null,null,null,null,null,null,null,null,null,null,null,null,null,null,null,null,null,null,null,"　"]
[null,null,null," ","○","卒　　業　　研　　究",6,null,null,null,null,null,null,null,null,null,null,null,null,null,null,null,null,null,null,null,null,null,null,null,null,null,null,null,null,null,null,null,null,null,null,null,null,null,"STEP２"]
["合計",null,null,null,null,null,null,null,{"$f":"SUM(I15:I33)","v":0},null,{"$f":"SUM(K15:K33)","v":0},null,{"$f":"SUM(M15:M33)","v":0},null,{"$f":"SUM(O15:O33)","v":0},null,{"$f":"SUM(Q15:Q33)","v":0},null,{"$f":"SUM(S15:S33)","v":0},null,{"$f":"SUM(U15:U33)","v":0},null,{"$f":"SUM(W15:W33)","v":0},null,{"$f":"SUM(Y15:Y33)","v":0},null,{"$f":"SUM(AA15:AA33)","v":0},null,{"$f":"SUM(AC15:AC33)","v":0},null,{"$f":"SUM(AE15:AE33)","v":0},null,{"$f":"SUM(AG15:AG33)","v":0},null,{"$f":"SUM(AI15:AI33)","v":0},null,{"$f":"SUM(AK15:AK33)","v":0},null,{"$f":"SUM(AM15:AM33)","v":0},{"$f":"SUM(H34,J34,L34,N34,P34,R34,T34,V34,X34,Z34,AB34,AD34,AF34,AH34,AJ34,AL34)","v":0},35,{"$f":"SUM(I34,K34,M34,O34,Q34,S34,U34,W34,Y34,AA34,AC34,AE34,AG34,AI34,AK34,AM34)","v":0},null,null,"累積GPAの値を成績原簿と一致するかチェックする。"]
[null,null,null,null,null,null,null,null,null,null,null,null,null,null,null,null,null,null,null,null,null,null,null,null,null,null,null,null,null,null,null,null,null,null,null,null,null,null,null,null,null,null,null,null,"区分ごとの単位修得状況の入力が終了した後に、シート"]
["専門科目","情報基礎科目群","選択科目A群","○",null,"確率統計序論",1,null,null,null,null,null,null,null,null,null,null,null,null,null,null,null,null,null,null,null,null,null,null,null,null,null,null,null,null,null,null,null,null,null,null,null,null,null,"右下赤枠の「累積GPA」の値が、成績原簿に記載されて","情報基礎科目群","選択科目A群",259752613116,{"$f":"F36","v":"確率統計序論"}]
[null,null,null,null,"○","情　　報　　数　　学",2,null,null,null,null,null,null,null,null,null,null,null,null,null,null,null,null,null,null,null,null,null,null,null,null,null,null,null,null,null,null,null,null,null,null,null,null,null,"いる累積GPAの値と一致しているかチェックし、一致"]
[null,null,null," ","○","数値解析",2,null,null,null,null,null,null,null,null,null,null,null,null,null,null,null,null,null,null,null,null,null,null,null,null,null,null,null,null,null,null,null,null,null,null,null,null,null,"していない場合はSTEP１に戻り、入力値に間違いが",null,null,259742612102,"数値解析"]
[null,null,null," ","○","電気回路学I及び演習",3,null,null,null,null,null,null,null,null,null,null,null,null,null,null,null,null,null,null,null,null,null,null,null,null,null,null,null,null,null,null,null,null,null,null,null,null,null,"ないか見直し、正しく入力する。",null,null,250222000001,"電気回路学I及び演習"]
[null,null,null," ","○","情　　報　　理　　論",2,null,null,null,null,null,null,null,null,null,null,null,null,null,null,null,null,null,null,null,null,null,null,null,null,null,null,null,null,null,null,null,null,null,null,null,null,null,null,null,null,259752611103,"情　　報　　理　　論"]
[null,null,null," ","○","計　算　機　工　学",2,null,null,null,null,null,null,null,null,null,null,null,null,null,null,null,null,null,null,null,null,null,null,null,null,null,null,null,null,null,null,null,null,null,null,null,null,null,"（補足説明）",null,null,250226000101,"計　算　機　工　学"]
[null,null,null," ","○","電気磁気学及び演習",3,null,null,null,null,null,null,null,null,null,null,null,null,null,null,null,null,null,null,null,null,null,null,null,null,null,null,null,null,null,null,null,null,null,null,null,null,null,"※留年した場合は「期を増やす」欄で列を増やす。",null,null,250092900013,"電気磁気学及び演習"]
["合計",null,null,null,null,null,null,null,{"$f":"SUM(I36:I42)","v":0},null,{"$f":"SUM(K36:K42)","v":0},null,{"$f":"SUM(M36:M42)","v":0},null,{"$f":"SUM(O36:O42)","v":0},null,{"$f":"SUM(Q36:Q42)","v":0},null,{"$f":"SUM(S36:S42)","v":0},null,{"$f":"SUM(U36:U42)","v":0},null,{"$f":"SUM(W36:W42)","v":0},null,{"$f":"SUM(Y36:Y42)","v":0},null,{"$f":"SUM(AA36:AA42)","v":0},null,{"$f":"SUM(AC36:AC42)","v":0},null,{"$f":"SUM(AE36:AE42)","v":0},null,{"$f":"SUM(AG36:AG42)","v":0},null,{"$f":"SUM(AI36:AI42)","v":0},null,{"$f":"SUM(AK36:AK42)","v":0},null,{"$f":"SUM(AM36:AM42)","v":0},{"$f":"SUM(H43,J43,L43,N43,P43,R43,T43,V43,X43,Z43,AB43,AD43,AF43,AH43,AJ43,AL43)","v":0},11,{"$f":"SUM(I43,K43,M43,O43,Q43,S43,U43,W43,Y43,AA43,AC43,AE43,AG43,AI43,AK43,AM43)","v":0},null,null,"※評価Pの科目については、GPおよびGPAの計算に含ま"]
[null,null,null,null,null,null,null,null,null,null,null,null,null,null,null,null,null,null,null,null,null,null,null,null,null,null,null,null,null,null,null,null,null,null,null,null,null,null,null,null,null,null,null,null,"　ない。しかしながら、進級・卒業要件の累積単位数"]
["専門科目","ソフトウェアコア科目群","選択科目B群",null,"○","アルゴリズムとデータ構造",2,null,null,null,null,null,null,null,null,null,null,null,null,null,null,null,null,null,null,null,null,null,null,null,null,null,null,null,null,null,null,null,null,null,null,null,null,null,"　には含まれることがあるので、標準履修課程表で確認","ソフトウェアコア科目群","選択科目B群",259752611101,{"$f":"F45","v":"アルゴリズムとデータ構造"}]
[null,null,null," ","○","プログラミング言語II",2,null,null,null,null,null,null,null,null,null,null,null,null,null,null,null,null,null,null,null,null,null,null,null,null,null,null,null,null,null,null,null,null,null,null,null,null,null,"　すること。（インターンシップ等）",null,null,259752613126,"プログラミング言語II"]
[null,null,null,null,"○","ソフトウェア工学",2,null,null,null,null,null,null,null,null,null,null,null,null,null,null,null,null,null,null,null,null,null,null,null,null,null,null,null,null,null,null,null,null,null,null,null,null,null,"※随意科目については、GPおよびGPAの計算に含まれない。",null,null,259752613134,"ソフトウェア工学","「エ」が異なるためヒットせず","ソフトウエア工学 259752613134"]
[null,null,null," ","○","オペレーティングシステム論",2,null,null,null,null,null,null,null,null,null,null,null,null,null,null,null,null,null,null,null,null,null,null,null,null,null,null,null,null,null,null,null,null,null,null,null,null,null,"　また、進級・卒業要件にも含まれない。",null,null,259752613127,"オペレーティングシステム論"]
[null,null,null," ","○","プログラミング言語II演習",1,null,null,null,null,null,null,null,null,null,null,null,null,null,null,null,null,null,null,null,null,null,null,null,null,null,null,null,null,null,null,null,null,null,null,null,null,null,null,null,null,250092900014,"プログラミング言語II演習"]
[null,null,null," ","○","オートマトンと言語理論",2,null,null,null,null,null,null,null,null,null,null,null,null,null,null,null,null,null,null,null,null,null,null,null,null,null,null,null,null,null,null,null,null,null,null,null,null,null,null,null,null,259752613137,"オートマトンと言語理論"]
[null,null,null," ","○","データベース",2,null,null,null,null,null,null,null,null,null,null,null,null,null,null,null,null,null,null,null,null,null,null,null,null,null,null,null,null,null,null,null,null,null,null,null,null,null,null,null,null,259752613101,"データベース"]
["合計",null,null,null,null,null,null,null,{"$f":"SUM(I45:I51)","v":0},null,{"$f":"SUM(K45:K51)","v":0},null,{"$f":"SUM(M45:M51)","v":0},null,{"$f":"SUM(O45:O51)","v":0},null,{"$f":"SUM(Q45:Q51)","v":0},null,{"$f":"SUM(S45:S51)","v":0},null,{"$f":"SUM(U45:U51)","v":0},null,{"$f":"SUM(W45:W51)","v":0},null,{"$f":"SUM(Y45:Y51)","v":0},null,{"$f":"SUM(AA45:AA51)","v":0},null,{"$f":"SUM(AC45:AC51)","v":0},null,{"$f":"SUM(AE45:AE51)","v":0},null,{"$f":"SUM(AG45:AG51)","v":0},null,{"$f":"SUM(AI45:AI51)","v":0},null,{"$f":"SUM(AK45:AK51)","v":0},null,{"$f":"SUM(AM45:AM51)","v":0},{"$f":"SUM(H52,J52,L52,N52,P52,R52,T52,V52,X52,Z52,AB52,AD52,AF52,AH52,AJ52,AL52)","v":0},9,{"$f":"SUM(I52,K52,M52,O52,Q52,S52,U52,W52,Y52,AA52,AC52,AE52,AG52,AI52,AK52,AM52)","v":0}]
[]
["専門科目","情報システムコア科目群","選択科目C群"," ","○","情　報　論　理　回　路",2,null,null,null,null,null,null,null,null,null,null,null,null,null,null,null,null,null,null,null,null,null,null,null,null,null,null,null,null,null,null,null,null,null,null,null,null,null,null,"情報システムコア科目群","選択科目C群",259752611105,{"$f":"F54","v":"情　報　論　理　回　路"}]
[null,null,null,null,"○","計算機ネットワーク",2,null,null,null,null,null,null,null,null,null,null,null,null,null,null,null,null,null,null,null,null,null,null,null,null,null,null,null,null,null,null,null,null,null,null,null,null,null,null,null,null,259752613125,"計算機ネットワーク"]
[null,null,null,null,"○","計測工学",2,null,null,null,null,null,null,null,null,null,null,null,null,null,null,null,null,null,null,null,null,null,null,null,null,null,null,null,null,null,null,null,null,null,null,null,null,null,null,null,null,259752613103,"計測工学"]
[null,null,null," ","○","人工知能",2,null,null,null,null,null,null,null,null,null,null,null,null,null,null,null,null,null,null,null,null,null,null,null,null,null,null,null,null,null,null,null,null,null,null,null,null,null,null,null,null,259752613106,"人工知能"]
[null,null,null," ","○","情報通信工学",2,null,null,null,null,null,null,null,null,null,null,null,null,null,null,null,null,null,null,null,null,null,null,null,null,null,null,null,null,null,null,null,null,null,null,null,null,null,null,null,null,250092900015,"情報通信工学"]
[null,null,null,null,"○","マルチメディア",2,null,null,null,null,null,null,null,null,null,null,null,null,null,null,null,null,null,null,null,null,null,null,null,null,null,null,null,null,null,null,null,null,null,null,null,null,null,null,null,null,250092900016,"マルチメディア"]
[null,null,null,null,"○","自然言語処理",2,null,null,null,null,null,null,null,null,null,null,null,null,null,null,null,null,null,null,null,null,null,null,null,null,null,null,null,null,null,null,null,null,null,null,null,null,null,null,null,null,259752613118,"自然言語処理"]
[null,null,null," ","○","画像情報工学",2,null,null,null,null,null,null,null,null,null,null,null,null,null,null,null,null,null,null,null,null,null,null,null,null,null,null,null,null,null,null,null,null,null,null,null,null,null,null,null,null,259752613122,"画像情報工学"]
[null,null,null,null,"○","シミュレーション工学",2,null,null,null,null,null,null,null,null,null,null,null,null,null,null,null,null,null,null,null,null,null,null,null,null,null,null,null,null,null,null,null,null,null,null,null,null,null,null,null,null,251329000006,"シミュレーション工学","ヒットせず"]
["合計",null,null,null,null,null,null,null,{"$f":"SUM(I54:I62)","v":0},null,{"$f":"SUM(K54:K62)","v":0},null,{"$f":"SUM(M54:M62)","v":0},null,{"$f":"SUM(O54:O62)","v":0},null,{"$f":"SUM(Q54:Q62)","v":0},null,{"$f":"SUM(S54:S62)","v":0},null,{"$f":"SUM(U54:U62)","v":0},null,{"$f":"SUM(W54:W62)","v":0},null,{"$f":"SUM(Y54:Y62)","v":0},null,{"$f":"SUM(AA54:AA62)","v":0},null,{"$f":"SUM(AC54:AC62)","v":0},null,{"$f":"SUM(AE54:AE62)","v":0},null,{"$f":"SUM(AG54:AG62)","v":0},null,{"$f":"SUM(AI54:AI62)","v":0},null,{"$f":"SUM(AK54:AK62)","v":0},null,{"$f":"SUM(AM54:AM62)","v":0},{"$f":"SUM(H63,J63,L63,N63,P63,R63,T63,V63,X63,Z63,AB63,AD63,AF63,AH63,AJ63,AL63)","v":0},10,{"$f":"SUM(I63,K63,M63,O63,Q63,S63,U63,W63,Y63,AA63,AC63,AE63,AG63,AI63,AK63,AM63)","v":0}]
[]
["専門科目","情報生体システム科目群","選択科目D群"," ","○","生体機構学",2,null,null,null,null,null,null,null,null,null,null,null,null,null,null,null,null,null,null,null,null,null,null,null,null,null,null,null,null,null,null,null,null,null,null,null,null,null,null,"情報生体システム科目群","選択科目D群",250092900018,{"$f":"F65","v":"生体機構学"}]
[null,null,null," ","○","システム工学",2,null,null,null,null,null,null,null,null,null,null,null,null,null,null,null,null,null,null,null,null,null,null,null,null,null,null,null,null,null,null,null,null,null,null,null,null,null,null,null,null,259652616115,"システム工学"]
[null,null,null,null,"○","電気回路学II",2,null,null,null,null,null,null,null,null,null,null,null,null,null,null,null,null,null,null,null,null,null,null,null,null,null,null,null,null,null,null,null,null,null,null,null,null,null,null,null,null,259752614102,"電気回路学II","2件以上ヒット","電気回路学Ⅱ 250072700020\n電気回路学Ⅱ（情） 259752614102"]
[null,null,null,null,"○","生体情報工学I",2,null,null,null,null,null,null,null,null,null,null,null,null,null,null,null,null,null,null,null,null,null,null,null,null,null,null,null,null,null,null,null,null,null,null,null,null,null,null,null,null,259752613108,"生体情報工学I"]
[null,null,null,null,"○","電子回路",2,null,null,null,null,null,null,null,null,null,null,null,null,null,null,null,null,null,null,null,null,null,null,null,null,null,null,null,null,null,null,null,null,null,null,null,null,null,null,null,null,250226013001,"電子回路"]
[null,null,null," ","○","計算物理学",2,null,null,null,null,null,null,null,null,null,null,null,null,null,null,null,null,null,null,null,null,null,null,null,null,null,null,null,null,null,null,null,null,null,null,null,null,null,null,null,null,250092900021,"計算物理学"]
[null,null,null," ","○","信頼性システム工学",2]
[null,null,null," ","○","電気化学",2,null,null,null,null,null,null,null,null,null,null,null,null,null,null,null,null,null,null,null,null,null,null,null,null,null,null,null,null,null,null,null,null,null,null,null,null,null,null,null,null,259552227104,"電気化学"]
[null,null,null," ","○","生体情報工学II",2,null,null,null,null,null,null,null,null,null,null,null,null,null,null,null,null,null,null,null,null,null,null,null,null,null,null,null,null,null,null,null,null,null,null,null,null,null,null,null,null,259752613109,"生体情報工学II"]
[null,null,null," ","○","ヒューマンインターフェイス",2,null,null,null,null,null,null,null,null,null,null,null,null,null,null,null,null,null,null,null,null,null,null,null,null,null,null,null,null,null,null,null,null,null,null,null,null,null,null,null,null,259752613102,"ヒューマンインターフェイス"]
["合計",null,null,null,null,null,null,null,{"$f":"SUM(I65:I74)","v":0},null,{"$f":"SUM(K65:K74)","v":0},null,{"$f":"SUM(M65:M74)","v":0},null,{"$f":"SUM(O65:O74)","v":0},null,{"$f":"SUM(Q65:Q74)","v":0},null,{"$f":"SUM(S65:S74)","v":0},null,{"$f":"SUM(U65:U74)","v":0},null,{"$f":"SUM(W65:W74)","v":0},null,{"$f":"SUM(Y65:Y74)","v":0},null,{"$f":"SUM(AA65:AA74)","v":0},null,{"$f":"SUM(AC65:AC74)","v":0},null,{"$f":"SUM(AE65:AE74)","v":0},null,{"$f":"SUM(AG65:AG74)","v":0},null,{"$f":"SUM(AI65:AI74)","v":0},null,{"$f":"SUM(AK65:AK74)","v":0},null,{"$f":"SUM(AM65:AM74)","v":0},{"$f":"SUM(H75,J75,L75,N75,P75,R75,T75,V75,X75,Z75,AB75,AD75,AF75,AH75,AJ75,AL75)","v":0},12,{"$f":"SUM(I75,K75,M75,O75,Q75,S75,U75,W75,Y75,AA75,AC75,AE75,AG75,AI75,AK75,AM75)","v":0}]
[]
["専門科目","工学基礎・教養科目群","選択科目E群",null,"○","化学基礎",2,null,null,null,null,null,null,null,null,null,null,null,null,null,null,null,null,null,null,null,null,null,null,null,null,null,null,null,null,null,null,null,null,null,null,null,null,null,null,"工学基礎・教養科目群","選択科目E群",250099110002,{"$f":"F77","v":"化学基礎"}]
[null,null,null,null,"○","地球科学基礎",2,null,null,null,null,null,null,null,null,null,null,null,null,null,null,null,null,null,null,null,null,null,null,null,null,null,null,null,null,null,null,null,null,null,null,null,null,null,null,null,null,250299110001,"地球科学基礎"]
[null,null,null," ","○","情報生体システム工学\n　　　　　　　　　特別講義I",1,null,null,null,null,null,null,null,null,null,null,null,null,null,null,null,null,null,null,null,null,null,null,null,null,null,null,null,null,null,null,null,null,null,null,null,null,null,null,null,null,250092900025,"情報生体システム工学\n　　　　　　　　　特別講義I"]
[null,null,null," ","○","情報生体システム工学\n　　　　　　　　　特別講義II",1,null,null,null,null,null,null,null,null,null,null,null,null,null,null,null,null,null,null,null,null,null,null,null,null,null,null,null,null,null,null,null,null,null,null,null,null,null,null,null,null,250092900026,"情報生体システム工学\n　　　　　　　　　特別講義II"]
[null,null,null," ","○","原子力・放射線と環境",2,null,null,null,null,null,null,null,null,null,null,null,null,null,null,null,null,null,null,null,null,null,null,null,null,null,null,null,null,null,null,null,null,null,null,null,null,null,null,null,null,250042099101,"原子力・放射線と環境"]
[null,null,null," ","○","生　産　工　学　論",2,null,null,null,null,null,null,null,null,null,null,null,null,null,null,null,null,null,null,null,null,null,null,null,null,null,null,null,null,null,null,null,null,null,null,null,null,null,null,null,null,250299200001,"生　産　工　学　論"]
[null,null,null," ","○","エレクトロニクス論",2,null,null,null,null,null,null,null,null,null,null,null,null,null,null,null,null,null,null,null,null,null,null,null,null,null,null,null,null,null,null,null,null,null,null,null,null,null,null,null,null,250228100002,"エレクトロニクス論"]
[null,null,null," ","○","材　料　科　学　論",2,null,null,null,null,null,null,null,null,null,null,null,null,null,null,null,null,null,null,null,null,null,null,null,null,null,null,null,null,null,null,null,null,null,null,null,null,null,null,null,null,250228100005,"材　料　科　学　論"]
[null,null,null," ","○","科　学　技　術　論",2,null,null,null,null,null,null,null,null,null,null,null,null,null,null,null,null,null,null,null,null,null,null,null,null,null,null,null,null,null,null,null,null,null,null,null,null,null,null,null,null,250228100006,"科　学　技　術　論"]
[null,null,null," ","○","環境工学論",2,null,null,null,null,null,null,null,null,null,null,null,null,null,null,null,null,null,null,null,null,null,null,null,null,null,null,null,null,null,null,null,null,null,null,null,null,null,null,null,null,250228100004,"環境工学論"]
[null,null,null," ","○","エネルギー工学論",2,null,null,null,null,null,null,null,null,null,null,null,null,null,null,null,null,null,null,null,null,null,null,null,null,null,null,null,null,null,null,null,null,null,null,null,null,null,null,null,null,250228100003,"エネルギー工学論"]
[null,null,null,null,"○","工場見学",1,null,null,null,null,null,null,null,null,null,null,null,null,null,null,null,null,null,null,null,null,null,null,null,null,null,null,null,null,null,null,null,null,null,null,null,null,null,null,null,null,259752613401,"工場見学"]
[null,null,null,null,"○","インターンシップ",1,null,null,null,null,null,null,null,null,null,null,null,null,null,null,null,null,null,null,null,null,null,null,null,null,null,null,null,null,null,null,null,null,null,null,null,null,null,null,null,null,250223010041,"インターンシップ"]
["合計",null,null,null,null,null,null,null,{"$f":"SUM(I77:I89)","v":0},null,{"$f":"SUM(K77:K89)","v":0},null,{"$f":"SUM(M77:M89)","v":0},null,{"$f":"SUM(O77:O89)","v":0},null,{"$f":"SUM(Q77:Q89)","v":0},null,{"$f":"SUM(S77:S89)","v":0},null,{"$f":"SUM(U77:U89)","v":0},null,{"$f":"SUM(W77:W89)","v":0},null,{"$f":"SUM(Y77:Y89)","v":0},null,{"$f":"SUM(AA77:AA89)","v":0},null,{"$f":"SUM(AC77:AC89)","v":0},null,{"$f":"SUM(AE77:AE89)","v":0},null,{"$f":"SUM(AG77:AG89)","v":0},null,{"$f":"SUM(AI77:AI89)","v":0},null,{"$f":"SUM(AK77:AK89)","v":0},null,{"$f":"SUM(AM77:AM89)","v":0},{"$f":"SUM(H90,J90,L90,N90,P90,R90,T90,V90,X90,Z90,AB90,AD90,AF90,AH90,AJ90,AL90)","v":0},4,{"$f":"SUM(I90,K90,M90,O90,Q90,S90,U90,W90,Y90,AA90,AC90,AE90,AG90,AI90,AK90,AM90)","v":0}]
[]
["専門教育科目合計（単位数とGP）",null,null,null,null,null,null,{"$f":"SUM(H13,H34,H43,H52,H63,H75,H90)","v":0},0,0,0,0,0,0,0,0,0,0,0,0,0,0,0,0,0,0,0,0,0,0,0,0,0,0,0,0,0,0,0,{"$f":"SUM(H92,J92,L92,N92,P92,R92,T92,V92,X92,Z92,AB92,AD92,AF92,AH92,AJ92,AL92)","v":0},93,{"$f":"SUM(I92,K92,M92,O92,Q92,S92,U92,W92,Y92,AA92,AC92,AE92,AG92,AI92,AK92,AM92)","v":0}]
["(共通＋専門)教育科目合計（単位数とGP）",null,null,null,null,null,null,{"$f":"'単位修得状況確認表（共通教育科目，外国人留学生）'!H25+H92","v":0},{"$f":"'単位修得状況確認表（共通教育科目，外国人留学生）'!I25+I92","v":0},{"$f":"'単位修得状況確認表（共通教育科目，外国人留学生）'!J25+J92","v":0},{"$f":"'単位修得状況確認表（共通教育科目，外国人留学生）'!K25+K92","v":0},{"$f":"'単位修得状況確認表（共通教育科目，外国人留学生）'!L25+L92","v":0},{"$f":"'単位修得状況確認表（共通教育科目，外国人留学生）'!M25+M92","v":0},{"$f":"'単位修得状況確認表（共通教育科目，外国人留学生）'!N25+N92","v":0},{"$f":"'単位修得状況確認表（共通教育科目，外国人留学生）'!O25+O92","v":0},{"$f":"'単位修得状況確認表（共通教育科目，外国人留学生）'!P25+P92","v":0},{"$f":"'単位修得状況確認表（共通教育科目，外国人留学生）'!Q25+Q92","v":0},{"$f":"'単位修得状況確認表（共通教育科目，外国人留学生）'!R25+R92","v":0},{"$f":"'単位修得状況確認表（共通教育科目，外国人留学生）'!S25+S92","v":0},{"$f":"'単位修得状況確認表（共通教育科目，外国人留学生）'!T25+T92","v":0},{"$f":"'単位修得状況確認表（共通教育科目，外国人留学生）'!U25+U92","v":0},{"$f":"'単位修得状況確認表（共通教育科目，外国人留学生）'!V25+V92","v":0},{"$f":"'単位修得状況確認表（共通教育科目，外国人留学生）'!W25+W92","v":0},{"$f":"'単位修得状況確認表（共通教育科目，外国人留学生）'!X25+X92","v":0},{"$f":"'単位修得状況確認表（共通教育科目，外国人留学生）'!Y25+Y92","v":0},{"$f":"'単位修得状況確認表（共通教育科目，外国人留学生）'!Z25+Z92","v":0},{"$f":"'単位修得状況確認表（共通教育科目，外国人留学生）'!AA25+AA92","v":0},{"$f":"'単位修得状況確認表（共通教育科目，外国人留学生）'!AB25+AB92","v":0},{"$f":"'単位修得状況確認表（共通教育科目，外国人留学生）'!AC25+AC92","v":0},{"$f":"'単位修得状況確認表（共通教育科目，外国人留学生）'!AD25+AD92","v":0},{"$f":"'単位修得状況確認表（共通教育科目，外国人留学生）'!AE25+AE92","v":0},{"$f":"'単位修得状況確認表（共通教育科目，外国人留学生）'!AF25+AF92","v":0},{"$f":"'単位修得状況確認表（共通教育科目，外国人留学生）'!AG25+AG92","v":0},{"$f":"'単位修得状況確認表（共通教育科目，外国人留学生）'!AH25+AH92","v":0},{"$f":"'単位修得状況確認表（共通教育科目，外国人留学生）'!AI25+AI92","v":0},{"$f":"'単位修得状況確認表（共通教育科目，外国人留学生）'!AJ25+AJ92","v":0},{"$f":"'単位修得状況確認表（共通教育科目，外国人留学生）'!AK25+AK92","v":0},{"$f":"'単位修得状況確認表（共通教育科目，外国人留学生）'!AL25+AL92","v":0},{"$f":"'単位修得状況確認表（共通教育科目，外国人留学生）'!AM25+AM92","v":0},{"$f":"SUM(H93,J93,L93,N93,P93,R93,T93,V93,X93,Z93,AB93,AD93,AF93,AH93,AJ93,AL93)","v":0},124,{"$f":"SUM(I93,K93,M93,O93,Q93,S93,U93,W93,Y93,AA93,AC93,AE93,AG93,AI93,AK93,AM93)","v":0}]
["※","「期を増やす」欄により学年を４年間増やすことが可。",null,null,null,null,null,null,null,null,null,null,null,null,null,null,null,null,null,null,null,null,null,null,null,null,null,null,null,null,null,null,null,null,null,null,null,null,null,"累積GPA",null,{"$f":"IF(AN93-AN96>0,AP93/(AN93-AN96-'単位修得状況確認表（共通教育科目，外国人留学生）'!AN28+AN97+'単位修得状況確認表（共通教育科目，外国人留学生）'!AN29-AN98-'単位修得状況確認表（共通教育科目，外国人留学生）'!AN30),\"\")","v":""}]
[]
["①【専門教育科目】評価Pの単位数",null,null,null,null,null,null,null,null,null,null,null,null,null,null,null,null,null,null,null,null,null,null,null,null,null,null,null,null,null,null,null,null,null,null,null,null,null,null,{"$f":"SUM(H96:AM96)","v":0}]
["②【専門教育科目】不合格（評価F）の単位数",null,null,null,null,null,null,null,null,null,null,null,null,null,null,null,null,null,null,null,null,null,null,null,null,null,null,null,null,null,null,null,null,null,null,null,null,null,null,{"$f":"SUM(H97:AM97)","v":0}]
["③【専門教育科目】評価F科目の再履修での修得単位数",null,null,null,null,null,null,null,null,null,null,null,null,null,null,null,null,null,null,null,null,null,null,null,null,null,null,null,null,null,null,null,null,null,null,null,null,null,null,{"$f":"SUM(H98:AM98)","v":0}]

{"sheet":"累積グラフ","index":5,"n_rows":233,"n_cols":8,"rows_kept":233,"cut":false,"hidden":false,"merged":[[65,2,65,3],[3,6,3,7],[3,2,3,3],[3,4,3,5],[34,2,34,3],[34,4,34,5]]}
[]
[null,"共通教育科目（必修科目）"]
[]
[null,null,"初年次教育科目",null,"ｸﾞﾛｰﾊﾞﾙ教育科目",null,"日本語・日本事情科目"]
[null,null,"取得単位数","累積取得単位数","取得単位数","累積取得単位数","取得単位数","累積取得単位数"]
[null,"1年前期終了時",{"$f":"SUM('単位修得状況確認表（共通教育科目，外国人留学生）'!H7:H12)","v":0},{"$f":"SUM(C$6:C6)","v":0},{"$f":"SUM('単位修得状況確認表（共通教育科目，外国人留学生）'!H13:H14)","v":0},{"$f":"SUM(E$6:E6)","v":0},{"$f":"SUM('単位修得状況確認表（共通教育科目，外国人留学生）'!H15:H16)","v":0},{"$f":"SUM(G$6:G6)","v":0}]
[null,"1年後期終了時",{"$f":"SUM('単位修得状況確認表（共通教育科目，外国人留学生）'!J7:J12)","v":0},{"$f":"SUM(C$6:C7)","v":0},{"$f":"SUM('単位修得状況確認表（共通教育科目，外国人留学生）'!J13:J14)","v":0},{"$f":"SUM(E$6:E7)","v":0},{"$f":"SUM('単位修得状況確認表（共通教育科目，外国人留学生）'!J15:J16)","v":0},{"$f":"SUM(G$6:G7)","v":0}]
[null,"2年前期終了時",{"$f":"SUM('単位修得状況確認表（共通教育科目，外国人留学生）'!L7:L12)","v":0},{"$f":"SUM(C$6:C8)","v":0},{"$f":"SUM('単位修得状況確認表（共通教育科目，外国人留学生）'!L13:L14)","v":0},{"$f":"SUM(E$6:E8)","v":0},{"$f":"SUM('単位修得状況確認表（共通教育科目，外国人留学生）'!L15:L16)","v":0},{"$f":"SUM(G$6:G8)","v":0}]
[null,"2年後期終了時",{"$f":"SUM('単位修得状況確認表（共通教育科目，外国人留学生）'!N7:N12)","v":0},{"$f":"SUM(C$6:C9)","v":0},{"$f":"SUM('単位修得状況確認表（共通教育科目，外国人留学生）'!N13:N14)","v":0},{"$f":"SUM(E$6:E9)","v":0},{"$f":"SUM('単位修得状況確認表（共通教育科目，外国人留学生）'!N15:N16)","v":0},{"$f":"SUM(G$6:G9)","v":0}]
[null,"3年前期終了時",{"$f":"SUM('単位修得状況確認表（共通教育科目，外国人留学生）'!P7:P12)","v":0},{"$f":"SUM(C$6:C10)","v":0},{"$f":"SUM('単位修得状況確認表（共通教育科目，外国人留学生）'!P13:P14)","v":0},{"$f":"SUM(E$6:E10)","v":0},{"$f":"SUM('単位修得状況確認表（共通教育科目，外国人留学生）'!P15:P16)","v":0},{"$f":"SUM(G$6:G10)","v":0}]
[null,"3年後期終了時",{"$f":"SUM('単位修得状況確認表（共通教育科目，外国人留学生）'!R7:R12)","v":0},{"$f":"SUM(C$6:C11)","v":0},{"$f":"SUM('単位修得状況確認表（共通教育科目，外国人留学生）'!R13:R14)","v":0},{"$f":"SUM(E$6:E11)","v":0},{"$f":"SUM('単位修得状況確認表（共通教育科目，外国人留学生）'!R15:R16)","v":0},{"$f":"SUM(G$6:G11)","v":0}]
[null,"4年前期終了時",{"$f":"SUM('単位修得状況確認表（共通教育科目，外国人留学生）'!T7:T12)","v":0},{"$f":"SUM(C$6:C12)","v":0},{"$f":"SUM('単位修得状況確認表（共通教育科目，外国人留学生）'!T13:T14)","v":0},{"$f":"SUM(E$6:E12)","v":0},{"$f":"SUM('単位修得状況確認表（共通教育科目，外国人留学生）'!T15:T16)","v":0},{"$f":"SUM(G$6:G12)","v":0}]
[null,"4年後期終了時",{"$f":"SUM('単位修得状況確認表（共通教育科目，外国人留学生）'!V7:V12)","v":0},{"$f":"SUM(C$6:C13)","v":0},{"$f":"SUM('単位修得状況確認表（共通教育科目，外国人留学生）'!V13:V14)","v":0},{"$f":"SUM(E$6:E13)","v":0},{"$f":"SUM('単位修得状況確認表（共通教育科目，外国人留学生）'!V15:V16)","v":0},{"$f":"SUM(G$6:G13)","v":0}]
[]
[]
[]
[]
[]
[]
[]
[]
[]
[]
[]
[]
[]
[]
[]
[]
[]
[]
[]
[null,"共通教育科目（選択必修科目）"]
[]
[null,null,"教養教育科目",null,"教養活用科目"]
[null,null,"取得単位数","累積取得単位数","取得単位数","累積取得単位数"]
[null,"1年前期終了時",{"$f":"SUM('単位修得状況確認表（共通教育科目，外国人留学生）'!H18:H21)","v":0},{"$f":"SUM(C$37:C37)","v":0},{"$f":"SUM('単位修得状況確認表（共通教育科目，外国人留学生）'!H22:H23)","v":0},{"$f":"SUM(E$37:E37)","v":0}]
[null,"1年後期終了時",{"$f":"SUM('単位修得状況確認表（共通教育科目，外国人留学生）'!J18:J21)","v":0},{"$f":"SUM(C$37:C38)","v":0},{"$f":"SUM('単位修得状況確認表（共通教育科目，外国人留学生）'!J22:J23)","v":0},{"$f":"SUM(E$37:E38)","v":0}]
[null,"2年前期終了時",{"$f":"SUM('単位修得状況確認表（共通教育科目，外国人留学生）'!L18:L21)","v":0},{"$f":"SUM(C$37:C39)","v":0},{"$f":"SUM('単位修得状況確認表（共通教育科目，外国人留学生）'!L22:L23)","v":0},{"$f":"SUM(E$37:E39)","v":0}]
[null,"2年後期終了時",{"$f":"SUM('単位修得状況確認表（共通教育科目，外国人留学生）'!N18:N21)","v":0},{"$f":"SUM(C$37:C40)","v":0},{"$f":"SUM('単位修得状況確認表（共通教育科目，外国人留学生）'!N22:N23)","v":0},{"$f":"SUM(E$37:E40)","v":0}]
[null,"3年前期終了時",{"$f":"SUM('単位修得状況確認表（共通教育科目，外国人留学生）'!P18:P21)","v":0},{"$f":"SUM(C$37:C41)","v":0},{"$f":"SUM('単位修得状況確認表（共通教育科目，外国人留学生）'!P22:P23)","v":0},{"$f":"SUM(E$37:E41)","v":0}]
[null,"3年後期終了時",{"$f":"SUM('単位修得状況確認表（共通教育科目，外国人留学生）'!R18:R21)","v":0},{"$f":"SUM(C$37:C42)","v":0},{"$f":"SUM('単位修得状況確認表（共通教育科目，外国人留学生）'!R22:R23)","v":0},{"$f":"SUM(E$37:E42)","v":0}]
[null,"4年前期終了時",{"$f":"SUM('単位修得状況確認表（共通教育科目，外国人留学生）'!T18:T21)","v":0},{"$f":"SUM(C$37:C43)","v":0},{"$f":"SUM('単位修得状況確認表（共通教育科目，外国人留学生）'!T22:T23)","v":0},{"$f":"SUM(E$37:E43)","v":0}]
[null,"4年後期終了時",{"$f":"SUM('単位修得状況確認表（共通教育科目，外国人留学生）'!V18:V21)","v":0},{"$f":"SUM(C$37:C44)","v":0},{"$f":"SUM('単位修得状況確認表（共通教育科目，外国人留学生）'!V22:V23)","v":0},{"$f":"SUM(E$37:E44)","v":0}]
[]
[]
[]
[]
[]
[]
[]
[]
[]
[]
[]
[]
[]
[]
[]
[]
[]
[]
[]
[null,"専門教育科目（基礎教育科目）"]
[]
[null,null,"必修科目"]
[null,null,"取得単位数","累積取得単位数"]
[null,"1年前期終了時",{"$f":"'単位修得状況確認表（専門教育科目）'!H13","v":0},{"$f":"SUM(C$68:C68)","v":0}]
[null,"1年後期終了時",{"$f":"'単位修得状況確認表（専門教育科目）'!J13","v":0},{"$f":"SUM(C$68:C69)","v":0}]
[null,"2年前期終了時",{"$f":"'単位修得状況確認表（専門教育科目）'!L13","v":0},{"$f":"SUM(C$68:C70)","v":0}]
[null,"2年後期終了時",{"$f":"'単位修得状況確認表（専門教育科目）'!N13","v":0},{"$f":"SUM(C$68:C71)","v":0}]
[null,"3年前期終了時",{"$f":"'単位修得状況確認表（専門教育科目）'!P13","v":0},{"$f":"SUM(C$68:C72)","v":0}]
[null,"3年後期終了時",{"$f":"'単位修得状況確認表（専門教育科目）'!R13","v":0},{"$f":"SUM(C$68:C73)","v":0}]
[null,"4年前期終了時",{"$f":"'単位修得状況確認表（専門教育科目）'!T13","v":0},{"$f":"SUM(C$68:C74)","v":0}]
[null,"4年後期終了時",{"$f":"'単位修得状況確認表（専門教育科目）'!V13","v":0},{"$f":"SUM(C$68:C75)","v":0}]
[]
[]
[]
[]
[]
[]
[]
[null,"専門教育科目（必修科目）"]
[]
[null,null,"取得単位数","累積取得単位数"]
[null,"1年前期終了時",{"$f":"'単位修得状況確認表（専門教育科目）'!H34","v":0},{"$f":"SUM(C$86:C86)","v":0}]
[null,"1年後期終了時",{"$f":"'単位修得状況確認表（専門教育科目）'!J34","v":0},{"$f":"SUM(C$86:C87)","v":0}]
[null,"2年前期終了時",{"$f":"'単位修得状況確認表（専門教育科目）'!L34","v":0},{"$f":"SUM(C$86:C88)","v":0}]
[null,"2年後期終了時",{"$f":"'単位修得状況確認表（専門教育科目）'!N34","v":0},{"$f":"SUM(C$86:C89)","v":0}]
[null,"3年前期終了時",{"$f":"'単位修得状況確認表（専門教育科目）'!P34","v":0},{"$f":"SUM(C$86:C90)","v":0}]
[null,"3年後期終了時",{"$f":"'単位修得状況確認表（専門教育科目）'!R34","v":0},{"$f":"SUM(C$86:C91)","v":0}]
[null,"4年前期終了時",{"$f":"'単位修得状況確認表（専門教育科目）'!T34","v":0},{"$f":"SUM(C$86:C92)","v":0}]
[null,"4年後期終了時",{"$f":"'単位修得状況確認表（専門教育科目）'!V34","v":0},{"$f":"SUM(C$86:C93)","v":0}]
[]
[]
[]
[]
[]
[]
[]
[null,"情報基礎科目群（選択科目A群）"]
[]
[null,null,"取得単位数","累積取得単位数"]
[null,"1年前期終了時",{"$f":"'単位修得状況確認表（専門教育科目）'!H43","v":0},{"$f":"SUM(C$104:C104)","v":0}]
[null,"1年後期終了時",{"$f":"'単位修得状況確認表（専門教育科目）'!J43","v":0},{"$f":"SUM(C$104:C105)","v":0}]
[null,"2年前期終了時",{"$f":"'単位修得状況確認表（専門教育科目）'!L43","v":0},{"$f":"SUM(C$104:C106)","v":0}]
[null,"2年後期終了時",{"$f":"'単位修得状況確認表（専門教育科目）'!N43","v":0},{"$f":"SUM(C$104:C107)","v":0}]
[null,"3年前期終了時",{"$f":"'単位修得状況確認表（専門教育科目）'!P43","v":0},{"$f":"SUM(C$104:C108)","v":0}]
[null,"3年後期終了時",{"$f":"'単位修得状況確認表（専門教育科目）'!R43","v":0},{"$f":"SUM(C$104:C109)","v":0}]
[null,"4年前期終了時",{"$f":"'単位修得状況確認表（専門教育科目）'!T43","v":0},{"$f":"SUM(C$104:C110)","v":0}]
[null,"4年後期終了時",{"$f":"'単位修得状況確認表（専門教育科目）'!V43","v":0},{"$f":"SUM(C$104:C111)","v":0}]
[]
[]
[]
[]
[]
[]
[]
[null,"ソフトウェアコア科目群（選択科目B群）"]
[]
[null,null,"取得単位数","累積取得単位数"]
[null,"1年前期終了時",{"$f":"'単位修得状況確認表（専門教育科目）'!H52","v":0},{"$f":"SUM(C$122:C122)","v":0}]
[null,"1年後期終了時",{"$f":"'単位修得状況確認表（専門教育科目）'!J52","v":0},{"$f":"SUM(C$122:C123)","v":0}]
[null,"2年前期終了時",{"$f":"'単位修得状況確認表（専門教育科目）'!L52","v":0},{"$f":"SUM(C$122:C124)","v":0}]
[null,"2年後期終了時",{"$f":"'単位修得状況確認表（専門教育科目）'!N52","v":0},{"$f":"SUM(C$122:C125)","v":0}]
[null,"3年前期終了時",{"$f":"'単位修得状況確認表（専門教育科目）'!P52","v":0},{"$f":"SUM(C$122:C126)","v":0}]
[null,"3年後期終了時",{"$f":"'単位修得状況確認表（専門教育科目）'!R52","v":0},{"$f":"SUM(C$122:C127)","v":0}]
[null,"4年前期終了時",{"$f":"'単位修得状況確認表（専門教育科目）'!T52","v":0},{"$f":"SUM(C$122:C128)","v":0}]
[null,"4年後期終了時",{"$f":"'単位修得状況確認表（専門教育科目）'!V52","v":0},{"$f":"SUM(C$122:C129)","v":0}]
[]
[]
[]
[]
[]
[]
[]
[null,"情報システムコア科目群（選択科目C群）"]
[]
[null,null,"取得単位数","累積取得単位数"]
[null,"1年前期終了時",{"$f":"'単位修得状況確認表（専門教育科目）'!H63","v":0},{"$f":"SUM(C$140:C140)","v":0}]
[null,"1年後期終了時",{"$f":"'単位修得状況確認表（専門教育科目）'!J63","v":0},{"$f":"SUM(C$140:C141)","v":0}]
[null,"2年前期終了時",{"$f":"'単位修得状況確認表（専門教育科目）'!L63","v":0},{"$f":"SUM(C$140:C142)","v":0}]
[null,"2年後期終了時",{"$f":"'単位修得状況確認表（専門教育科目）'!N63","v":0},{"$f":"SUM(C$140:C143)","v":0}]
[null,"3年前期終了時",{"$f":"'単位修得状況確認表（専門教育科目）'!P63","v":0},{"$f":"SUM(C$140:C144)","v":0}]
[null,"3年後期終了時",{"$f":"'単位修得状況確認表（専門教育科目）'!R63","v":0},{"$f":"SUM(C$140:C145)","v":0}]
[null,"4年前期終了時",{"$f":"'単位修得状況確認表（専門教育科目）'!T63","v":0},{"$f":"SUM(C$140:C146)","v":0}]
[null,"4年後期終了時",{"$f":"'単位修得状況確認表（専門教育科目）'!V63","v":0},{"$f":"SUM(C$140:C147)","v":0}]
[]
[]
[]
[]
[]
[]
[]
[null,"情報生体システム科目群（選択科目D群）"]
[]
[null,null,"取得単位数","累積取得単位数"]
[null,"1年前期終了時",{"$f":"'単位修得状況確認表（専門教育科目）'!H75","v":0},{"$f":"SUM(C$158:C158)","v":0}]
[null,"1年後期終了時",{"$f":"'単位修得状況確認表（専門教育科目）'!J75","v":0},{"$f":"SUM(C$158:C159)","v":0}]
[null,"2年前期終了時",{"$f":"'単位修得状況確認表（専門教育科目）'!L75","v":0},{"$f":"SUM(C$158:C160)","v":0}]
[null,"2年後期終了時",{"$f":"'単位修得状況確認表（専門教育科目）'!N75","v":0},{"$f":"SUM(C$158:C161)","v":0}]
[null,"3年前期終了時",{"$f":"'単位修得状況確認表（専門教育科目）'!P75","v":0},{"$f":"SUM(C$158:C162)","v":0}]
[null,"3年後期終了時",{"$f":"'単位修得状況確認表（専門教育科目）'!R75","v":0},{"$f":"SUM(C$158:C163)","v":0}]
[null,"4年前期終了時",{"$f":"'単位修得状況確認表（専門教育科目）'!T75","v":0},{"$f":"SUM(C$158:C164)","v":0}]
[null,"4年後期終了時",{"$f":"'単位修得状況確認表（専門教育科目）'!V75","v":0},{"$f":"SUM(C$158:C165)","v":0}]
[]
[]
[]
[]
[]
[]
[]
[null,"工学基礎・教養科目群（選択科目E群）"]
[]
[null,null,"取得単位数","累積取得単位数"]
[null,"1年前期終了時",{"$f":"'単位修得状況確認表（専門教育科目）'!H90","v":0},{"$f":"SUM(C$176:C176)","v":0}]
[null,"1年後期終了時",{"$f":"'単位修得状況確認表（専門教育科目）'!J90","v":0},{"$f":"SUM(C$176:C177)","v":0}]
[null,"2年前期終了時",{"$f":"'単位修得状況確認表（専門教育科目）'!L90","v":0},{"$f":"SUM(C$176:C178)","v":0}]
[null,"2年後期終了時",{"$f":"'単位修得状況確認表（専門教育科目）'!N90","v":0},{"$f":"SUM(C$176:C179)","v":0}]
[null,"3年前期終了時",{"$f":"'単位修得状況確認表（専門教育科目）'!P90","v":0},{"$f":"SUM(C$176:C180)","v":0}]
[null,"3年後期終了時",{"$f":"'単位修得状況確認表（専門教育科目）'!R90","v":0},{"$f":"SUM(C$176:C181)","v":0}]
[null,"4年前期終了時",{"$f":"'単位修得状況確認表（専門教育科目）'!T90","v":0},{"$f":"SUM(C$176:C182)","v":0}]
[null,"4年後期終了時",{"$f":"'単位修得状況確認表（専門教育科目）'!V90","v":0},{"$f":"SUM(C$176:C183)","v":0}]
[]
[]
[]
[]
[]
[]
[]
[null,"累積単位数"]
[]
[null,null,"取得単位数","累積取得単位数"]
[null,"1年前期終了時",{"$f":"SUM(C6,E6,G6,C37,E37,C68,C86,C104,C122,C140,C158,C176)","v":0},{"$f":"SUM(C$194:C194)","v":0}]
[null,"1年後期終了時",{"$f":"SUM(C7,E7,G7,C38,E38,C69,C87,C105,C123,C141,C159,C177)","v":0},{"$f":"SUM(C$194:C195)","v":0}]
[null,"2年前期終了時",0,{"$f":"SUM(C$194:C196)","v":0}]
[null,"2年後期終了時",0,{"$f":"SUM(C$194:C197)","v":0}]
[null,"3年前期終了時",0,{"$f":"SUM(C$194:C198)","v":0}]
[null,"3年後期終了時",0,{"$f":"SUM(C$194:C199)","v":0}]
[null,"4年前期終了時",0,{"$f":"SUM(C$194:C200)","v":0}]
[null,"4年後期終了時",0,{"$f":"SUM(C$194:C201)","v":0}]
[]
[]
[]
[]
[]
[]
[]
[]
[]
[]
[]
[]
[]
[]
[]
[]
[]
[]
[]
[]
[]
[null,"GPA"]
[]
[null,null,"累積GP","累積GPA","GPA累積単位数","累積P","累積F"]
[null,"1年前期終了時",{"$f":"'単位修得状況確認表（共通教育科目，外国人留学生）'!I25+'単位修得状況確認表（専門教育科目）'!I92","v":0},{"$f":"IF(E226=0,\"\",C226/E226)","v":""},{"$f":"D194-F226+G226","v":0},{"$f":"'単位修得状況確認表（共通教育科目，外国人留学生）'!H28+'単位修得状況確認表（専門教育科目）'!H96","v":0},{"$f":"'単位修得状況確認表（共通教育科目，外国人留学生）'!H29+'単位修得状況確認表（専門教育科目）'!H97-'単位修得状況確認表（共通教育科目，外国人留学生）'!H30-'単位修得状況確認表（専門教育科目）'!H98","v":0}]
[null,"1年後期終了時",{"$f":"C226+'単位修得状況確認表（共通教育科目，外国人留学生）'!K25+'単位修得状況確認表（専門教育科目）'!K92","v":0},"",{"$f":"D195-F227+G227","v":0},{"$f":"F226+'単位修得状況確認表（共通教育科目，外国人留学生）'!J28+'単位修得状況確認表（専門教育科目）'!J96","v":0},{"$f":"G226+'単位修得状況確認表（共通教育科目，外国人留学生）'!J29+'単位修得状況確認表（専門教育科目）'!J97-'単位修得状況確認表（共通教育科目，外国人留学生）'!J30-'単位修得状況確認表（専門教育科目）'!J98","v":0}]
[null,"2年前期終了時",{"$f":"C227+'単位修得状況確認表（共通教育科目，外国人留学生）'!M25+'単位修得状況確認表（専門教育科目）'!M92","v":0},"",{"$f":"D196-F228+G228","v":0},{"$f":"F227+'単位修得状況確認表（共通教育科目，外国人留学生）'!L28+'単位修得状況確認表（専門教育科目）'!L96","v":0},{"$f":"G227+'単位修得状況確認表（共通教育科目，外国人留学生）'!L29+'単位修得状況確認表（専門教育科目）'!L97-'単位修得状況確認表（共通教育科目，外国人留学生）'!L30-'単位修得状況確認表（専門教育科目）'!L98","v":0}]
[null,"2年後期終了時",{"$f":"C228+'単位修得状況確認表（共通教育科目，外国人留学生）'!O25+'単位修得状況確認表（専門教育科目）'!O92","v":0},"",0,{"$f":"F228+'単位修得状況確認表（共通教育科目，外国人留学生）'!N28+'単位修得状況確認表（専門教育科目）'!N96","v":0},{"$f":"G228+'単位修得状況確認表（共通教育科目，外国人留学生）'!N29+'単位修得状況確認表（専門教育科目）'!N97-'単位修得状況確認表（共通教育科目，外国人留学生）'!N30-'単位修得状況確認表（専門教育科目）'!N98","v":0}]
[null,"3年前期終了時",{"$f":"C229+'単位修得状況確認表（共通教育科目，外国人留学生）'!Q25+'単位修得状況確認表（専門教育科目）'!Q92","v":0},"",0,{"$f":"F229+'単位修得状況確認表（共通教育科目，外国人留学生）'!P28+'単位修得状況確認表（専門教育科目）'!P96","v":0},{"$f":"G229+'単位修得状況確認表（共通教育科目，外国人留学生）'!P29+'単位修得状況確認表（専門教育科目）'!P97-'単位修得状況確認表（共通教育科目，外国人留学生）'!P30-'単位修得状況確認表（専門教育科目）'!P98","v":0}]
[null,"3年後期終了時",{"$f":"C230+'単位修得状況確認表（共通教育科目，外国人留学生）'!S25+'単位修得状況確認表（専門教育科目）'!S92","v":0},"",0,{"$f":"F230+'単位修得状況確認表（共通教育科目，外国人留学生）'!R28+'単位修得状況確認表（専門教育科目）'!R96","v":0},{"$f":"G230+'単位修得状況確認表（共通教育科目，外国人留学生）'!R29+'単位修得状況確認表（専門教育科目）'!R97-'単位修得状況確認表（共通教育科目，外国人留学生）'!R30-'単位修得状況確認表（専門教育科目）'!R98","v":0}]
[null,"4年前期終了時",{"$f":"C231+'単位修得状況確認表（共通教育科目，外国人留学生）'!U25+'単位修得状況確認表（専門教育科目）'!U92","v":0},"",0,{"$f":"F231+'単位修得状況確認表（共通教育科目，外国人留学生）'!T28+'単位修得状況確認表（専門教育科目）'!T96","v":0},{"$f":"G231+'単位修得状況確認表（共通教育科目，外国人留学生）'!T29+'単位修得状況確認表（専門教育科目）'!T97-'単位修得状況確認表（共通教育科目，外国人留学生）'!T30-'単位修得状況確認表（専門教育科目）'!T98","v":0}]
[null,"4年後期終了時",{"$f":"C232+'単位修得状況確認表（共通教育科目，外国人留学生）'!W25+'単位修得状況確認表（専門教育科目）'!W92","v":0},"",0,{"$f":"F232+'単位修得状況確認表（共通教育科目，外国人留学生）'!V28+'単位修得状況確認表（専門教育科目）'!V96","v":0},{"$f":"G232+'単位修得状況確認表（共通教育科目，外国人留学生）'!V29+'単位修得状況確認表（専門教育科目）'!V97-'単位修得状況確認表（共通教育科目，外国人留学生）'!V30-'単位修得状況確認表（専門教育科目）'!V98","v":0}]